bitfinex/quotes_ETHUSD_20251120
["timestamp","ask_amount","ask_price","bid_price","bid_amount"]
[1763671097255,1.336304,2845.6,2845.5,0.001]
[1763671097666,2.24329664,2845.6,2845.5,0.001]
[1763671097865,3.21803538,2845.6,2845.5,0.001]
[1763671098480,3.76990212,2845.6,2845.5,0.001]
[1763671098872,3.76990212,2845.6,2844.1,0.4293215]
[1763671099164,0.405504,2845.4,2844.1,0.4293215]
[1763671099568,2.43359812,2845.6,2844.2,0.03515927]
[1763671099569,0.55186674,2845.6,2844.2,0.03515927]
[1763671099753,0.55186674,2845.6,2844.1,0.4293215]
[1763671099754,1.03176674,2845.6,2844.1,0.4293215]
[1763671100259,0.4799,2845.6,2844.1,0.4293215]
[1763671100456,0.4799,2846.0,2844.2,0.405504]
[1763671100724,0.4799,2846.0,2844.2,1.66247539]
[1763671101011,0.4799,2846.0,2844.3,0.4819]
[1763671101983,0.405504,2845.9,2844.3,0.4819]
[1763671102500,0.4799,2845.8,2844.3,0.4819]
[1763671103180,0.55177009,2845.5,2844.3,0.4819]
[1763671103799,0.4799,2845.4,2844.3,0.4819]
[1763671104307,0.4799,2845.4,2844.0,0.4819]
[1763671105525,0.4799,2845.4,2843.9,0.1325]
[1763671105526,0.90699264,2845.1,2843.9,0.1325]
[1763671105674,1.72651234,2845.0,2843.9,0.6144]
[1763671106010,0.885404,2845.0,2843.9,0.6144]
[1763671106174,0.1837,2844.9,2843.9,0.6144]
[1763671107813,0.6636,2844.9,2843.9,0.6144]
[1763671108310,0.1837,2844.9,2843.9,0.1325]
[1763671108516,0.1837,2844.9,2843.9,0.6144]
[1763671108713,0.4799,2844.8,2843.9,0.6144]
[1763671108915,0.4799,2844.8,2843.9,0.1325]
[1763671109508,0.4799,2844.8,2842.9,9.57394782]
[1763671109509,2.450333,2844.6,2843.3,0.4819]
[1763671109711,0.405504,2844.4,2842.9,0.1844]
[1763671109897,0.405504,2844.4,2843.0,0.4819]
[1763671110211,0.4799,2844.7,2843.0,0.4819]
[1763671110212,0.4799,2844.3,2843.0,0.4819]
[1763671112480,0.4799,2844.3,2842.6,0.001]
[1763671112481,0.405504,2843.9,2842.6,0.001]
[1763671112704,0.4503574,2843.8,2842.6,0.001]
[1763671112890,0.405504,2844.2,2842.7,0.4732]
[1763671113201,0.4775,2844.2,2842.7,0.4732]
[1763671113522,0.55208036,2843.9,2842.7,0.4732]
[1763671113727,0.196,2843.8,2842.7,0.4732]
[1763671114132,0.6735,2843.8,2842.7,0.4732]
[1763671114422,0.6735,2843.8,2843.0,0.001]
[1763671114625,0.4775,2843.7,2843.0,0.001]
[1763671114831,0.405504,2843.6,2843.0,0.001]
[1763671115025,0.454,2843.1,2843.0,0.001]
[1763671115422,0.9315,2843.1,2843.0,0.001]
[1763671115833,0.4775,2843.5,2843.0,0.001]
[1763671116395,0.454,2843.1,2843.0,0.001]
[1763671116598,0.859504,2843.1,2843.0,0.001]
[1763671116947,0.859504,2843.1,2842.7,0.001]
[1763671116948,4.625959,2842.9,2842.7,0.001]
[1763671117093,10.43694354,2842.8,2842.7,0.001]
[1763671117297,1.2897999,2842.8,2842.7,0.001]
[1763671117498,0.8992,2842.8,2842.7,0.001]
[1763671117910,0.196,2843.0,2842.7,0.001]
[1763671118334,0.4536,2842.8,2842.7,0.001]
[1763671118544,0.6735,2843.0,2842.7,0.001]
[1763671118741,0.196,2843.0,2842.7,0.001]
[1763671119546,0.55220988,2843.4,2842.7,0.001]
[1763671120840,0.493,2843.7,2842.7,0.001]
[1763671121641,3.648806,2843.4,2842.7,0.001]
[1763671121843,1.27187324,2843.3,2842.7,0.001]
[1763671122055,0.405504,2843.6,2842.7,0.001]
[1763671122056,0.1933,2842.8,2842.7,0.001]
[1763671122225,0.6469,2842.8,2842.7,0.001]
[1763671122822,1.1399,2842.8,2842.7,0.001]
[1763671123143,1.545404,2842.8,2842.7,0.001]
[1763671123569,1.052404,2842.8,2842.7,0.001]
[1763671123740,1.545404,2842.8,2842.7,0.001]
[1763671123936,2.09770158,2842.8,2842.7,0.001]
[1763671124131,1.40896774,2842.8,2842.7,0.001]
[1763671124338,0.55229758,2842.8,2842.7,0.001]
[1763671124893,0.4791,2844.3,2842.7,0.001]
[1763671124894,0.1933,2848.1,2842.7,3.713]
[1763671125169,0.1933,2848.3,2846.0,0.90699264]
[1763671125329,0.1933,2848.3,2845.9,7.90959474]
[1763671125330,0.6863,2847.9,2846.2,5.36557934]
[1763671125534,0.493,2847.5,2846.1,1.24807534]
[1763671125732,0.1933,2846.9,2846.0,0.93611969]
[1763671126048,0.1933,2846.9,2845.8,0.93611969]
[1763671126370,0.1933,2846.9,2845.6,1.24807534]
[1763671126371,1.99363474,2846.9,2845.6,0.93611969]
[1763671126574,0.493,2846.7,2845.6,0.93611969]
[1763671126777,0.493,2846.7,2845.2,0.93611969]
[1763671127005,0.495,2846.3,2844.8,0.93611969]
[1763671127139,0.405504,2846.2,2844.8,0.93611969]
[1763671127343,0.495,2846.3,2844.8,0.93611969]
[1763671127659,0.495,2846.3,2845.0,0.93611969]
[1763671127660,0.002,2846.3,2845.0,0.93611969]
[1763671128064,0.002,2846.3,2845.1,0.93611969]
[1763671128578,0.002,2846.3,2845.0,0.93611969]
[1763671129659,0.002,2846.3,2844.9,0.93611969]
[1763671130379,0.002,2846.3,2845.0,0.93611969]
[1763671130750,0.002,2846.3,2844.9,0.93611969]
[1763671132472,0.002,2846.3,2844.6,0.90699264]
[1763671132473,0.002,2846.3,2844.8,0.93611969]
[1763671133684,0.002,2846.3,2844.5,0.90699264]
[1763671133685,0.002,2846.3,2844.9,0.93611969]
[1763671135550,0.002,2846.3,2844.8,7.50409074]
[1763671135551,0.002,2846.3,2844.8,8.44021043]
[1763671136179,0.002,2846.3,2844.8,0.93611969]
[1763671136375,0.002,2846.3,2844.9,1.34162369]
[1763671136683,0.002,2846.3,2845.0,0.93611969]
[1763671138193,0.002,2846.3,2845.1,0.405504]
[1763671138412,0.002,2846.3,2845.3,0.405504]
[1763671139108,0.002,2846.3,2845.3,1.34162369]
[1763671140389,0.002,2846.3,2845.5,1.34162369]
[1763671140619,0.002,2846.3,2846.1,0.93611969]
[1763671140821,0.002,2846.3,2846.2,1.34162369]
[1763671141113,0.002,2846.3,2846.2,0.405504]
[1763671141279,0.002,2846.3,2846.1,0.405504]
[1763671142415,0.002,2846.3,2845.8,2.15506798]
[1763671142416,0.002,2846.3,2845.9,0.405504]
[1763671142712,0.002,2846.3,2845.6,0.405504]
[1763671143826,0.002,2846.3,2845.8,2.24600261]
[1763671144288,0.002,2846.3,2846.0,0.405504]
[1763671144717,0.002,2846.3,2845.9,0.405504]
[1763671145009,0.002,2846.3,2845.2,9.37650209]
[1763671145010,0.002,2846.3,2845.2,0.93350597]
[1763671145404,0.002,2846.3,2845.3,0.93350597]
[1763671145577,0.002,2846.3,2845.2,0.93350597]
[1763671145778,0.002,2846.3,2845.4,0.93350597]
[1763671145978,0.002,2846.3,2845.5,0.405504]
[1763671146409,0.002,2846.3,2845.7,0.90699264]
[1763671147192,0.002,2846.3,2845.8,4.117504]
[1763671147407,0.002,2846.3,2846.2,0.405504]
[1763671147594,0.002,2846.3,2846.2,4.15263856]
[1763671147789,0.002,2846.3,2846.2,1.31249664]
[1763671147988,0.002,2846.3,2846.2,6.26613285]
[1763671148392,0.002,2846.3,2846.2,1.31249664]
[1763671148719,0.002,2846.3,2846.2,0.90699264]
[1763671149397,0.002,2846.3,2846.2,2.14862885]
[1763671149800,0.002,2846.3,2846.2,5.02449664]
[1763671150289,0.002,2846.3,2846.2,6.89690799]
[1763671151132,0.002,2846.3,2846.2,1.31249664]
[1763671151313,0.002,2846.3,2846.2,3.18490799]
[1763671151823,0.002,2846.3,2846.2,2.77940399]
[1763671151992,0.002,2846.3,2846.2,0.90699264]
[1763671152793,0.002,2846.3,2846.2,5.02449664]
[1763671153193,0.002,2846.3,2846.2,7.53843942]
[1763671153426,0.002,2846.3,2846.2,5.02449664]
[1763671154293,0.002,2846.6,2846.2,5.02449664]
[1763671154623,0.002,2846.6,2846.5,4.117504]
[1763671155625,0.002,2846.6,2846.3,3.14562462]
[1763671155829,0.002,2846.6,2846.4,2.51685813]
[1763671156394,0.002,2846.6,2846.3,2.51685813]
[1763671156609,0.002,2846.6,2846.5,1.25876201]
[1763671156932,0.002,2846.6,2846.4,2.51685813]
[1763671157109,0.002,2846.6,2846.3,3.712]
[1763671157110,0.002,2846.6,2846.3,2.51685813]
[1763671157309,0.002,2846.6,2846.4,2.51685813]
[1763671158536,0.002,2846.6,2846.5,10.17]
[1763671160002,0.002,2846.6,2846.5,17.71135477]
[1763671160197,0.002,2846.6,2846.5,8.84449664]
[1763671160635,0.002,2846.6,2846.5,11.99012126]
[1763671160809,0.002,2846.9,2846.8,4.117504]
[1763671161132,0.002,2846.9,2846.8,5.02449664]
[1763671162236,0.002,2846.9,2846.8,1.31249664]
[1763671163006,0.002,2846.9,2846.8,1.30452664]
[1763671163204,0.002,2846.9,2846.8,4.44938987]
[1763671163406,0.002,2846.9,2846.8,1.30452664]
[1763671165338,0.002,2846.9,2846.8,0.90699264]
[1763671165740,0.4782,2847.4,2846.8,0.90699264]
[1763671165741,0.002,2847.4,2847.2,3.816]
[1763671165907,0.002,2847.4,2847.3,3.816]
[1763671166109,0.002,2847.4,2847.3,4.21896547]
[1763671166310,0.9781,2847.4,2847.3,3.90383548]
[1763671166506,1.16660926,2847.4,2847.3,2.95825]
[1763671168772,1.16660926,2847.4,2847.0,6.35]
[1763671168773,0.90699264,2847.2,2847.0,0.94558548]
[1763671168952,1.40689264,2847.1,2846.8,0.001]
[1763671169267,0.002,2846.9,2846.8,0.001]
[1763671169471,0.6905,2846.9,2846.8,0.001]
[1763671169672,1.1667,2846.9,2846.8,0.001]
[1763671169832,1.1667,2846.9,2846.8,1.26171547]
[1763671169833,0.6905,2846.9,2846.8,1.26171547]
[1763671170374,1.1667,2846.9,2846.8,1.26405376]
[1763671170733,1.1667,2846.9,2846.8,0.001]
[1763671171251,0.6905,2846.9,2846.8,0.001]
[1763671171456,0.6905,2846.9,2846.8,1.26402656]
[1763671171765,0.6905,2846.9,2846.8,1.2640159]
[1763671171954,0.1906,2846.9,2846.8,0.001]
[1763671172341,1.1667,2846.9,2846.8,1.26401947]
[1763671172549,1.1667,2846.9,2846.8,0.001]
[1763671173632,0.6905,2846.9,2846.8,0.001]
[1763671173827,1.1667,2846.9,2846.8,2.95925]
[1763671174064,0.002,2846.9,2846.8,4.22226947]
[1763671174943,1.1667,2846.9,2846.8,4.22226947]
[1763671175146,1.1667,2846.9,2846.8,2.95925]
[1763671175538,1.1667,2846.9,2846.8,0.001]
[1763671175739,1.1667,2846.9,2846.8,0.94844552]
[1763671175959,1.1667,2846.9,2846.8,0.001]
[1763671178962,1.24192476,2846.9,2846.8,0.001]
[1763671179164,0.73362476,2846.9,2846.8,0.001]
[1763671180191,1.71102476,2846.9,2846.8,0.001]
[1763671186684,1.21742476,2846.9,2846.8,0.001]
[1763671186889,1.71102476,2846.9,2846.8,0.001]
[1763671187219,0.55342476,2846.9,2846.8,0.001]
[1763671187587,0.002,2847.2,2846.8,10.18177076]
[1763671187813,0.002,2847.2,2846.9,9.70227076]
[1763671188917,0.002,2847.2,2846.9,8.75482524]
[1763671189096,0.4838,2847.0,2846.9,8.75482524]
[1763671189593,0.9774,2847.0,2846.9,8.75482524]
[1763671189792,0.4838,2847.0,2846.9,8.75482524]
[1763671191090,0.002,2847.2,2846.9,8.75482524]
[1763671191291,0.002,2847.2,2847.0,2.40482524]
[1763671193385,0.9774,2847.1,2847.0,2.40482524]
[1763671194727,0.90699264,2847.0,2846.8,0.001]
[1763671194923,1.79084013,2846.9,2846.8,0.001]
[1763671195094,2.28444013,2846.9,2846.8,0.001]
[1763671197226,0.9875,2846.9,2846.8,0.001]
[1763671198327,0.4939,2846.9,2846.8,0.001]
[1763671198525,0.002,2847.2,2846.8,0.001]
[1763671198733,0.55144079,2846.9,2846.8,0.001]
[1763671198931,0.4956,2847.2,2846.8,0.001]
[1763671199135,0.55141621,2847.1,2846.8,0.001]
[1763671199535,0.664,2846.9,2846.8,0.001]
[1763671199935,1.1576,2846.9,2846.8,0.001]
[1763671200307,8.18756862,2846.9,2846.8,0.001]
[1763671200508,10.37396374,2846.9,2846.8,0.001]
[1763671200806,2.00015,2846.7,2846.5,0.001]
[1763671201018,0.718204,2846.6,2846.5,0.001]
[1763671201541,0.8063,2846.6,2846.5,0.001]
[1763671201709,0.3127,2846.6,2846.5,0.001]
[1763671201909,0.6738,2846.9,2846.5,0.001]
[1763671202135,0.1802,2846.9,2846.5,0.001]
[1763671202309,0.55141621,2847.1,2846.5,0.001]
[1763671202514,0.55141621,2847.1,2846.5,0.03613086]
[1763671202711,0.55141621,2847.1,2846.5,0.001]
[1763671203101,0.55141621,2847.1,2846.5,0.4562]
[1763671203302,0.55141621,2847.1,2847.0,0.4785]
[1763671203504,0.55141621,2847.1,2846.5,1.71921947]
[1763671203837,0.55141621,2847.1,2846.6,1.26301947]
[1763671204011,0.55141621,2847.1,2846.5,1.26401947]
[1763671204218,0.55141621,2847.1,2846.5,0.001]
[1763671204219,1.04501621,2847.1,2846.5,0.001]
[1763671204539,0.664,2846.6,2846.5,0.001]
[1763671205238,0.4936,2846.8,2846.5,0.001]
[1763671205400,0.1802,2846.8,2846.5,0.001]
[1763671205745,0.4838,2846.6,2846.5,0.001]
[1763671206102,0.9774,2846.6,2846.5,0.001]
[1763671207041,9.79838619,2846.6,2846.5,0.001]
[1763671207404,10.79624481,2846.6,2846.5,0.001]
[1763671208399,2.88225126,2846.6,2846.5,0.001]
[1763671208598,1.39079264,2846.6,2846.5,0.001]
[1763671208804,0.90699264,2846.6,2846.5,0.001]
[1763671209032,0.1802,2846.8,2846.5,0.001]
[1763671209451,0.73170554,2846.8,2846.5,0.001]
[1763671211037,0.002,2847.0,2846.7,0.4505]
[1763671211839,0.002,2847.0,2846.5,0.4732]
[1763671211840,0.002,2847.0,2846.9,0.4505]
[1763671212247,0.002,2847.0,2846.9,0.9227]
[1763671212540,0.002,2847.2,2846.9,0.9227]
[1763671212741,0.002,2847.2,2847.1,0.6153]
[1763671213245,0.002,2847.2,2847.1,1.0875]
[1763671213541,0.002,2847.2,2847.1,0.6153]
[1763671214550,0.002,2847.2,2847.1,1.0875]
[1763671217040,0.002,2847.2,2847.1,1.493004]
[1763671217219,0.002,2847.2,2847.1,4.29146271]
[1763671217849,0.002,2847.2,2847.1,2.39999664]
[1763671218219,0.002,2847.2,2847.1,3.88193653]
[1763671218423,0.002,2847.2,2847.1,1.99449264]
[1763671218743,0.002,2847.2,2847.1,1.0875]
[1763671219136,0.002,2847.2,2847.1,0.6153]
[1763671219330,0.002,2847.2,2846.8,0.4722]
[1763671219653,0.002,2847.2,2847.1,0.6153]
[1763671219943,0.002,2847.2,2847.1,1.0875]
[1763671220150,0.002,2847.2,2847.1,1.12262345]
[1763671220344,0.002,2847.2,2847.1,1.0875]
[1763671221777,0.002,2847.2,2846.6,0.4722]
[1763671222053,0.002,2847.2,2847.1,0.6153]
[1763671222754,0.4937,2847.2,2846.5,0.001]
[1763671222955,0.002,2847.2,2846.6,0.4722]
[1763671223460,0.002,2847.2,2846.5,0.001]
[1763671223649,0.4544,2847.2,2846.5,0.001]
[1763671224072,0.6886,2846.6,2846.5,0.001]
[1763671224431,1.141,2846.6,2846.5,0.001]
[1763671224768,0.002,2847.2,2846.5,0.4515]
[1763671224944,0.4544,2847.2,2847.0,0.001]
[1763671225267,0.9441,2847.1,2847.0,0.001]
[1763671225932,0.002,2847.2,2847.0,0.001]
[1763671227763,0.002,2847.2,2847.1,1.0875]
[1763671227968,0.002,2847.2,2847.1,1.493004]
[1763671228269,0.002,2847.2,2847.1,2.39999664]
[1763671228626,0.002,2847.2,2847.1,6.10999664]
[1763671228852,0.002,2847.2,2847.1,6.14512009]
[1763671229061,0.002,2847.2,2847.1,6.10999664]
[1763671229266,0.002,2847.4,2847.3,3.71]
[1763671229443,0.002,2847.4,2847.3,8.5016619]
[1763671229645,0.002,2847.6,2847.5,4.115504]
[1763671229849,0.002,2847.8,2847.6,5.02249664]
[1763671230049,0.46453548,2850.0,2847.8,0.405504]
[1763671230050,0.55100507,2849.9,2847.8,0.405504]
[1763671230259,0.01213548,2850.0,2848.9,3.71]
[1763671230572,0.01213548,2850.0,2849.6,0.6287]
[1763671231069,0.01213548,2850.0,2849.6,1.1009]
[1763671231433,0.01213548,2850.0,2849.6,1.506404]
[1763671233875,0.1986,2849.9,2849.1,0.1668]
[1763671234035,0.01213548,2850.0,2849.1,0.639]
[1763671234541,0.01213548,2850.0,2849.6,0.4619]
[1763671234942,0.01213548,2850.0,2849.1,0.572304]
[1763671235146,0.1986,2849.9,2849.1,0.1668]
[1763671235947,0.467,2849.7,2848.7,0.1668]
[1763671237339,0.467,2849.7,2848.7,0.639]
[1763671237743,0.467,2849.7,2848.1,0.1668]
[1763671237744,0.6984,2848.8,2848.1,0.1668]
[1763671238142,0.465,2849.3,2848.1,0.1668]
[1763671238450,0.465,2849.3,2848.2,0.877704]
[1763671238656,0.465,2849.3,2848.1,0.1668]
[1763671239373,0.465,2849.3,2846.8,0.18028438]
[1763671239374,0.465,2849.3,2847.1,0.6522]
[1763671239707,0.405504,2849.2,2847.2,0.4874]
[1763671239839,1.31249664,2849.2,2847.2,0.4874]
[1763671240174,1.38289862,2849.1,2847.2,0.4874]
[1763671240686,1.38289862,2849.1,2847.3,0.44062499]
[1763671240687,0.4543,2849.0,2847.3,0.44062499]
[1763671240978,0.4543,2849.0,2847.3,0.405504]
[1763671241274,0.195,2848.9,2847.5,0.405504]
[1763671241772,0.195,2848.9,2847.7,0.405504]
[1763671242157,0.74604255,2848.9,2847.9,0.405504]
[1763671243482,0.4543,2849.5,2848.3,0.405504]
[1763671243684,0.4543,2849.5,2848.8,0.1668]
[1763671243685,0.55097073,2849.5,2848.8,0.1668]
[1763671243868,1.00527073,2849.5,2848.8,0.1668]
[1763671244971,0.4543,2849.4,2848.5,1.07379264]
[1763671245175,0.4543,2849.4,2848.1,0.405504]
[1763671245176,0.4543,2849.4,2848.2,0.1668]
[1763671245995,0.4543,2849.4,2848.2,0.6542]
[1763671246999,0.4543,2849.4,2848.2,0.1668]
[1763671247303,0.4543,2849.4,2847.1,0.1658]
[1763671247304,0.692,2848.3,2847.1,0.1658]
[1763671247601,0.3071,2848.2,2847.1,0.6532]
[1763671247989,0.7614,2848.2,2847.1,0.6532]
[1763671248505,0.7614,2848.2,2847.2,0.405504]
[1763671249411,0.4543,2848.1,2847.1,0.1658]
[1763671250171,0.692,2847.2,2847.1,0.001]
[1763671250602,1.1463,2847.2,2847.1,0.001]
[1763671250803,0.195,2847.7,2847.1,0.6449]
[1763671251019,0.195,2847.7,2847.1,0.001]
[1763671251521,0.6493,2847.7,2847.1,0.001]
[1763671252299,0.4543,2847.6,2847.2,2.40482524]
[1763671252901,0.497,2847.3,2847.2,2.40482524]
[1763671253625,0.9513,2847.3,2847.2,2.40482524]
[1763671254811,0.9513,2847.3,2847.1,0.001]
[1763671255017,0.7669,2847.2,2847.1,0.001]
[1763671257524,0.3126,2846.8,2846.5,0.001]
[1763671257826,1.1479924,2846.7,2846.5,0.001]
[1763671258029,1.1479924,2846.7,2844.3,7.50848955]
[1763671258030,0.496,2846.3,2844.3,0.4874]
[1763671258325,6.311893,2846.5,2844.3,0.4874]
[1763671258326,0.493,2846.0,2844.4,0.405504]
[1763671258492,0.493,2846.0,2843.9,0.1648]
[1763671258699,0.9473,2846.0,2844.6,0.4874]
[1763671258906,0.9473,2846.0,2845.1,0.1688]
[1763671260434,0.9473,2846.0,2845.1,0.001]
[1763671260744,1.85429264,2846.0,2845.6,0.001]
[1763671260897,2.0397219,2846.0,2845.6,0.001]
[1763671261431,0.5106,2845.7,2845.6,0.001]
[1763671261632,0.6493,2845.9,2845.6,0.001]
[1763671261931,0.405504,2846.7,2845.6,0.001]
[1763671261932,0.195,2846.1,2845.6,0.001]
[1763671262526,0.6493,2846.1,2845.6,0.001]
[1763671263131,0.405504,2846.9,2845.6,0.001]
[1763671263308,0.19130006,2846.8,2845.6,0.001]
[1763671263523,0.90699264,2846.6,2845.6,0.001]
[1763671263729,0.4543,2846.7,2845.6,0.001]
[1763671263924,0.4543,2846.6,2845.6,0.001]
[1763671264514,0.692,2845.7,2845.6,0.001]
[1763671264922,1.1463,2845.7,2845.6,0.001]
[1763671265127,1.69799009,2845.7,2845.6,0.001]
[1763671266750,0.55169009,2845.7,2845.6,2.40582524]
[1763671267417,0.55169009,2845.7,2845.6,8.75582524]
[1763671267813,0.195,2846.1,2845.6,8.75582524]
[1763671268017,0.4543,2846.4,2845.7,8.75482524]
[1763671268018,0.55160963,2846.0,2845.7,8.75482524]
[1763671268641,0.55160963,2846.0,2845.8,2.40482524]
[1763671269072,0.55160963,2846.0,2845.9,2.40482524]
[1763671269537,0.55160963,2846.0,2845.9,2.88872524]
[1763671269742,0.6717,2847.0,2845.9,3.36102524]
[1763671269938,0.6717,2847.0,2845.9,0.4839]
[1763671270139,0.002,2848.0,2846.0,0.4723]
[1763671270140,0.55147049,2846.8,2846.0,0.4723]
[1763671270633,0.55147049,2846.8,2846.1,0.1678]
[1763671271264,0.1919,2846.9,2846.1,0.1678]
[1763671271427,0.5514657,2846.7,2846.1,0.1678]
[1763671272573,1.10199264,2847.7,2846.1,0.1678]
[1763671272574,0.4767,2847.4,2846.2,0.4723]
[1763671272863,0.55143027,2847.0,2846.6,0.4839]
[1763671273070,0.195,2847.7,2846.6,0.4839]
[1763671273225,0.5513392,2847.6,2846.9,0.4839]
[1763671273572,0.4767,2847.5,2846.1,0.6401]
[1763671273963,1.02809733,2847.5,2846.1,0.6401]
[1763671274279,0.4767,2847.5,2846.2,0.4723]
[1763671274466,0.551394,2847.3,2846.2,0.4723]
[1763671275375,0.4767,2847.2,2846.2,0.4723]
[1763671276277,0.4767,2847.2,2845.7,0.4723]
[1763671276476,0.4767,2847.2,2845.6,0.4733]
[1763671276477,0.19350866,2847.1,2845.6,0.4733]
[1763671276881,0.4767,2847.0,2845.6,0.4733]
[1763671277346,0.1919,2846.9,2845.6,0.4733]
[1763671277545,1.09889264,2846.9,2845.6,0.001]
[1763671277759,1.33752392,2846.8,2845.6,0.001]
[1763671278179,0.90699264,2846.5,2845.6,0.001]
[1763671278345,0.1919,2845.7,2845.6,0.001]
[1763671278548,0.4767,2846.4,2845.6,0.001]
[1763671278747,0.4767,2846.8,2845.6,0.4849]
[1763671279156,0.4767,2846.8,2845.6,0.9572]
[1763671279882,0.4767,2846.8,2845.6,0.4849]
[1763671280059,0.4767,2846.8,2845.6,0.001]
[1763671280262,7.03264655,2846.6,2845.6,0.001]
[1763671280452,1.6508077,2846.5,2845.6,0.001]
[1763671280646,2.1275077,2846.5,2845.6,0.001]
[1763671280876,0.4767,2846.4,2845.6,0.001]
[1763671282710,0.6837,2845.7,2845.6,0.001]
[1763671282884,1.1604,2845.7,2845.6,0.001]
[1763671284155,0.6837,2845.7,2845.6,0.001]
[1763671284350,0.1919,2845.9,2845.6,0.001]
[1763671284556,0.405504,2846.6,2845.6,0.001]
[1763671284863,0.90699264,2846.7,2845.6,0.001]
[1763671284864,0.4767,2846.5,2845.6,0.001]
[1763671285179,0.551619,2846.4,2845.6,0.001]
[1763671285376,0.1919,2845.7,2845.6,0.001]
[1763671285756,0.1919,2846.0,2845.6,0.001]
[1763671286053,0.4918,2845.7,2845.6,0.001]
[1763671286485,1.76861466,2845.7,2845.6,0.001]
[1763671286686,0.6686,2846.0,2845.6,0.001]
[1763671286886,1.028319,2846.4,2845.6,0.001]
[1763671287350,0.4767,2846.3,2845.6,0.001]
[1763671288284,0.551619,2846.4,2845.6,0.001]
[1763671288698,0.551619,2846.4,2845.6,0.4733]
[1763671291065,1.006519,2846.4,2845.6,0.001]
[1763671292201,0.4549,2846.3,2845.6,0.001]
[1763671293203,0.6528,2845.7,2845.6,0.001]
[1763671293818,1.1077,2845.7,2845.6,0.001]
[1763671293974,0.1901,2845.7,2845.6,0.001]
[1763671294170,0.4627,2845.7,2845.6,0.001]
[1763671294508,0.9176,2845.7,2845.6,0.001]
[1763671295116,0.4627,2845.7,2845.6,0.001]
[1763671295300,0.9176,2845.7,2845.6,0.001]
[1763671295495,1.46930112,2845.7,2845.6,0.001]
[1763671298880,1.01440112,2845.7,2845.6,0.001]
[1763671299081,0.55170112,2845.7,2845.6,0.001]
[1763671299281,0.55170112,2845.7,2845.6,0.4819]
[1763671299510,0.002,2846.4,2845.6,0.9566]
[1763671299681,0.55160852,2846.2,2845.6,0.4819]
[1763671301007,1.00170852,2846.2,2845.6,0.001]
[1763671302113,0.4501,2846.1,2845.6,0.001]
[1763671302408,0.6506,2845.7,2845.6,0.001]
[1763671302802,0.1841,2845.9,2845.6,0.001]
[1763671303476,0.55160852,2846.2,2845.6,0.001]
[1763671303477,0.55160852,2846.2,2845.8,0.4809]
[1763671303933,0.55160852,2846.2,2845.8,0.9556]
[1763671304432,0.55160852,2846.2,2845.6,0.001]
[1763671305535,0.55160852,2846.2,2845.6,0.4757]
[1763671305688,0.55160852,2846.2,2846.1,0.6487]
[1763671307231,0.55160852,2846.2,2845.6,0.001]
[1763671307393,0.55160852,2846.2,2845.6,0.4757]
[1763671308625,0.55160852,2846.2,2845.6,0.001]
[1763671310026,0.55160852,2846.2,2845.7,8.75482524]
[1763671312930,0.55160852,2846.2,2845.6,0.001]
[1763671312931,0.55160852,2846.2,2846.1,0.6487]
[1763671313294,0.002,2846.4,2846.1,0.6487]
[1763671313499,0.55351751,2846.4,2846.3,0.4809]
[1763671313701,0.002,2846.4,2846.3,0.4809]
[1763671313902,0.002,2846.4,2846.3,0.9556]
[1763671314909,0.002,2846.4,2846.3,0.99073333]
[1763671315108,0.002,2846.4,2846.3,0.9556]
[1763671317924,0.002,2846.4,2846.3,1.361104]
[1763671318243,0.002,2846.5,2846.4,2.81032924]
[1763671318448,0.002,2846.5,2846.4,5.65725886]
[1763671318687,0.002,2846.7,2846.4,6.5642515]
[1763671318833,0.002,2846.9,2846.7,0.886404]
[1763671319034,0.002,2846.9,2846.8,7.51354655]
[1763671319248,0.002,2846.9,2846.8,10.28253469]
[1763671319474,0.002,2846.9,2846.8,14.50857579]
[1763671320057,0.002,2847.5,2846.9,4.596404]
[1763671320381,0.002,2847.5,2847.4,2.77466016]
[1763671320782,0.002,2847.5,2847.4,3.24925452]
[1763671321074,0.002,2847.5,2847.4,1.361104]
[1763671321649,0.002,2847.5,2847.4,0.9556]
[1763671321957,0.002,2847.5,2847.4,0.4809]
[1763671322649,0.002,2847.5,2847.4,0.9556]
[1763671324085,0.002,2847.5,2847.1,0.1648]
[1763671324238,0.9186,2847.5,2846.6,0.4747]
[1763671324437,0.4685,2847.5,2846.7,3.71732188]
[1763671324867,0.9186,2847.5,2846.2,0.4747]
[1763671325396,0.4501,2847.4,2846.2,0.4747]
[1763671325557,0.4501,2847.4,2846.1,0.1678]
[1763671325756,0.4501,2847.4,2845.8,0.4747]
[1763671325757,0.90699264,2847.3,2845.8,0.4747]
[1763671326093,0.83897392,2847.2,2845.8,0.4747]
[1763671326280,1.28907392,2847.2,2845.8,0.4747]
[1763671326481,0.4501,2847.1,2845.8,0.4747]
[1763671326997,0.4501,2847.1,2845.6,0.001]
[1763671327957,0.4501,2847.1,2845.7,0.4747]
[1763671328370,1.35709264,2847.1,2845.6,0.001]
[1763671328665,0.83897392,2847.0,2845.6,0.001]
[1763671328869,0.6553,2846.9,2845.6,0.001]